fUSD/lending_fUSD_20240117
["ID","MTS","AMOUNT","RATE_DAILY","PERIOD"]
[311875658,1705483843631,-151.39,0.00021644,2]
[311875659,1705483843641,-205.0,0.00021657,2]
[311875660,1705483843650,-206.0,0.00021657,2]
[311875661,1705483843659,-202.0,0.00021657,2]
[311875662,1705483843668,-8650.0,0.00021698,2]
[311875663,1705483843677,-159.83,0.00021734,2]
[311875664,1705483843686,-258.61319956,0.00021816,2]
[311875665,1705483843695,-965.82580248,0.00021817,2]
[311875668,1705483843717,-4034.17419752,0.00021817,2]
[311875671,1705483843727,-250.0,0.00021817,2]
[311875673,1705483843736,-5190.0394,0.00021817,2]
[311875675,1705483843746,-1941.4081,0.00021817,2]
[311875677,1705483843755,-5288.81008149,0.00021817,2]
[311875681,1705483843782,-3868.38650608,0.00021817,2]
[311875683,1705483843791,-1252.37307037,0.00021817,2]
[311875685,1705483843801,-547.01659378,0.00021907,2]
[311875687,1705483843810,-5920.48730178,0.00021914,2]
[311875689,1705483843820,-164.61995834,0.00021915,2]
[311875691,1705483843829,-1050.68908073,0.00021915,2]
[311875693,1705483843838,-342.11507395,0.00021915,2]
[311875695,1705483843848,-213.60044722,0.00021915,2]
[311875697,1705483843858,-155.49151411,0.00021915,2]
[311875699,1705483843867,-155.82054156,0.00021915,2]
[311875701,1705483843877,-1767.60331455,0.00021915,2]
[311875703,1705483843886,-1500.0,0.00021915,2]
[311875705,1705483843896,-413.76587084,0.00021915,2]
[311875707,1705483843905,-598.29,0.00021916,2]
[311875709,1705483843915,-503.09837652,0.00021917,2]
[311875711,1705483843925,-509.91620346,0.00021917,2]
[311875713,1705483843934,-501.72383994,0.00021917,2]
[311875715,1705483843944,-500.0,0.00021917,2]
[311875717,1705483843954,-306.14203807,0.00021917,2]
[311875719,1705483843963,-500.0,0.00021917,2]
[311875721,1705483843973,-505.33553055,0.00021917,2]
[311875724,1705483843983,-571.0875923,0.00021917,2]
[311875726,1705483843993,-500.0,0.00021917,2]
[311875728,1705483844002,-508.33265582,0.00021917,2]
[311875730,1705483844012,-508.44082923,0.00021917,2]
[311875731,1705483844021,-513.8199266,0.00021917,2]
[311875734,1705483844031,-500.53814031,0.00021917,2]
[311875736,1705483844040,-621.36633356,0.00021917,2]
[311875738,1705483844050,-503.3625945,0.00021917,2]
[311875740,1705483844060,-506.07758629,0.00021917,2]
[311875742,1705483844069,-500.0,0.00021917,2]
[311875744,1705483844079,-503.29014911,0.00021917,2]
[311875746,1705483844089,-500.0,0.00021917,2]
[311875748,1705483844100,-506.67328912,0.00021917,2]
[311875750,1705483844109,-503.0447677,0.00021917,2]
[311875752,1705483844119,-503.27565768,0.00021917,2]
[311875754,1705483844128,-572.83678558,0.00021917,2]
[311875756,1705483844137,-500.0,0.00021917,2]
[311875758,1705483844146,-500.0,0.00021917,2]
[311875759,1705483844156,-500.0,0.00021917,2]
[311875761,1705483844165,-505.71672212,0.00021917,9]
[311875763,1705483844175,-516.79465507,0.00021917,2]
[311875765,1705483844185,-314.16973091,0.00021917,2]
[311875767,1705483844194,-1691.07,0.00021917,2]
[311875770,1705483844204,-121.62732225,0.00021917,2]
[311875772,1705483844219,-378.37267775,0.00021917,2]
[311875774,1705483844229,-504.21760946,0.00021917,2]
[311875776,1705483844239,-500.0,0.00021917,2]
[311875779,1705483844252,-500.0,0.00021917,2]
[311875781,1705483844261,-515.73,0.00021917,2]
[311875783,1705483844270,-490.49363354,0.00021917,2]
[311875785,1705483844279,-500.0,0.00021917,2]
[311875787,1705483844288,-500.0,0.00021917,2]
[311875789,1705483844298,-434.86149735,0.00021917,2]
[311875791,1705483844307,-512.76,0.00021917,2]
[311875793,1705483844317,-500.0,0.00021917,2]
[311875795,1705483844326,-500.0,0.00021917,2]
[311875797,1705483844335,-500.0,0.00021917,2]
[311875799,1705483844345,-419.80740707,0.00021917,2]
[311875801,1705483844353,-378.56939263,0.00021917,2]
[311875803,1705483844367,-234.15060737,0.00021917,2]
[311875805,1705483844376,-968.39,0.00021917,2]
[311875807,1705483844385,-500.0,0.00021917,2]
[311875809,1705483844395,-500.0,0.00021917,2]
[311875811,1705483844403,-500.0,0.00021917,2]
[311875813,1705483844412,-299.17783595,0.00021917,2]
[311875816,1705483844429,-200.82216405,0.00021917,2]
[311875818,1705483844438,-525.5290211,0.00021917,2]
[311875820,1705483844448,-500.0,0.00021917,2]
[311875822,1705483844457,-15.89050835,0.00021917,2]
[311875824,1705483844469,-484.10949165,0.00021917,2]
[311875826,1705483844479,-517.35768653,0.00021917,2]
[311875828,1705483844488,-579.3,0.00021917,2]
[311875830,1705483844497,-500.0,0.00021917,2]
[311875833,1705483844507,-500.0,0.00021917,2]
[311875834,1705483844517,-418.9500222,0.00021917,2]
[311875850,1705483844657,-191.3399778,0.00021917,2]
[311875852,1705483844666,-501.69354927,0.00021917,2]
[311875854,1705483844675,-500.0,0.00021917,2]
[311875856,1705483844685,-500.0,0.00021917,2]
[311875858,1705483844695,-500.0,0.00021917,2]
[311875860,1705483844705,-500.0,0.00021917,2]
[311875862,1705483844714,-80.62788589,0.00021917,2]
[311875871,1705483844781,-419.37211411,0.00021917,2]
[311875873,1705483844791,-500.0,0.00021917,2]
[311875875,1705483844800,-504.01967277,0.00021917,2]
[311875889,1705483844915,-500.0,0.00021917,2]
[311875891,1705483844925,-501.36355322,0.00021917,2]
[311875893,1705483844935,-905.07,0.00021917,2]
[311875895,1705483844944,-500.0,0.00021917,2]
[311875897,1705483844953,-500.0,0.00021917,2]
[311875899,1705483844962,-530.31,0.00021917,2]
[311875901,1705483844971,-500.0,0.00021917,2]
[311875903,1705483844980,-500.0,0.00021917,2]
[311875905,1705483844989,-500.0,0.00021917,2]
[311875907,1705483844998,-510.00551972,0.00021917,2]
[311875909,1705483845007,-500.0,0.00021917,2]
[311875911,1705483845016,-500.0,0.00021917,2]
[311875913,1705483845026,-500.0,0.00021917,2]
[311875915,1705483845035,-191.00227684,0.00021917,2]
[311875917,1705483845044,-918.52,0.00021917,2]
[311875919,1705483845053,-500.0,0.00021917,2]
[311875921,1705483845062,-500.0,0.00021917,2]
[311875923,1705483845071,-746.72,0.00021917,2]
[311875925,1705483845081,-500.0,0.00021917,2]
[311875927,1705483845090,-500.0,0.00021917,2]
[311875928,1705483845100,-504.40819678,0.00021917,2]
[311875929,1705483845109,-513.93702617,0.00021917,2]
[311875930,1705483845117,-500.0,0.00021917,2]
[311875931,1705483845126,-500.0,0.00021917,2]
[311875932,1705483845135,-500.0,0.00021917,2]
[311875933,1705483845143,-598.87,0.00021917,2]
[311875934,1705483845152,-529.59,0.00021917,2]
[311875936,1705483845161,-500.0,0.00021917,2]
[311875938,1705483845170,-787.78,0.00021917,2]
[311875940,1705483845179,-500.0,0.00021917,2]
[311875942,1705483845188,-500.0,0.00021917,2]
[311875944,1705483845197,-500.0,0.00021917,2]
[311875946,1705483845206,-500.0,0.00021917,2]
[311875948,1705483845215,-502.47961968,0.00021917,2]
[311875950,1705483845224,-651.71,0.00021917,2]
[311875952,1705483845233,-500.0,0.00021917,2]
[311875954,1705483845242,-500.0,0.00021917,2]
[311875956,1705483845251,-501.15531771,0.00021917,2]
[311875958,1705483845260,-500.0,0.00021917,2]
[311875960,1705483845270,-500.0,0.00021917,2]
[311875962,1705483845279,-500.0,0.00021917,2]
[311875964,1705483845287,-500.0,0.00021917,2]
[311875966,1705483845297,-500.0,0.00021917,2]
[311875968,1705483845306,-414.86306077,0.00021917,2]
[311875970,1705483845317,-497.62877019,0.00021917,2]
[311875971,1705483845326,-502.75788794,0.00021917,2]
[311875972,1705483845335,-882.56,0.00021917,2]
[311875973,1705483845344,-615.5840366,0.00021917,2]
[311875974,1705483845353,-500.0,0.00021917,2]
[311875975,1705483845362,-500.0,0.00021917,2]
[311875976,1705483845371,-792.17,0.00021917,2]
[311875977,1705483845380,-506.56,0.00021917,2]
[311875978,1705483845390,-500.0,0.00021917,2]
[311875979,1705483845399,-500.0,0.00021917,2]
[311875980,1705483845408,-500.0,0.00021917,2]
[311875981,1705483845417,-594.0,0.00021917,2]
[311875983,1705483845426,-500.0,0.00021917,2]
[311875985,1705483845435,-778.73,0.00021917,2]
[311875987,1705483845444,-500.0,0.00021917,2]
[311875989,1705483845454,-500.0,0.00021917,2]
[311875990,1705483845463,-500.0,0.00021917,2]
[311875992,1705483845472,-500.0,0.00021917,2]
[311875994,1705483845481,-1000.0,0.00021917,2]
[311875996,1705483845491,-500.0,0.00021917,2]
[311875998,1705483845500,-500.0,0.00021917,2]
[311876000,1705483845509,-500.0,0.00021917,2]
[311876003,1705483845523,-500.0,0.00021917,2]
[311876004,1705483845532,-500.0,0.00021917,2]
[311876005,1705483845541,-500.0,0.00021917,2]
[311876006,1705483845550,-500.0,0.00021917,2]
[311876007,1705483845560,-642.82,0.00021917,2]
[311876008,1705483845569,-500.0,0.00021917,2]
[311876009,1705483845579,-500.0,0.00021917,2]
[311876010,1705483845588,-500.0,0.00021917,2]
[311876011,1705483845599,-500.0,0.00021917,2]
[311876012,1705483845610,-625.33,0.00021917,2]
[311876013,1705483845619,-500.0,0.00021917,2]
[311876014,1705483845629,-500.0,0.00021917,2]
[311876015,1705483845638,-818.97,0.00021917,2]
[311876016,1705483845647,-500.0,0.00021917,2]
[311876017,1705483845656,-500.0,0.00021917,2]
[311876018,1705483845666,-500.0,0.00021917,10]
[311876019,1705483845677,-500.0,0.00021917,2]
[311876020,1705483845686,-775.2,0.00021917,2]
[311876021,1705483845696,-500.0,0.00021917,2]
[311876022,1705483845705,-500.0,0.00021917,2]
[311876023,1705483845714,-500.0,0.00021917,2]
[311876024,1705483845723,-500.0,0.00021917,2]
[311876025,1705483845733,-500.0,0.00021917,2]
[311876027,1705483845742,-500.0,0.00021917,2]
[311876029,1705483845751,-805.03,0.00021917,2]
[311876031,1705483845760,-500.0,0.00021917,2]
[311876033,1705483845769,-710.63,0.00021917,2]
[311876035,1705483845778,-500.0,0.00021917,2]
[311876036,1705483845787,-500.0,0.00021917,2]
[311876037,1705483845796,-500.0,0.00021917,2]
[311876038,1705483845805,-500.0,0.00021917,2]
[311876039,1705483845815,-500.0,0.00021917,2]
[311876040,1705483845824,-500.0,0.00021917,2]
[311876041,1705483845834,-550.6,0.00021917,2]
[311876042,1705483845843,-301.10345515,0.00021917,2]
[311876043,1705483845853,-503.32978927,0.00021917,2]
[311876044,1705483845862,-500.0,0.00021917,2]
[311876045,1705483845871,-500.0,0.00021917,2]
[311876046,1705483845880,-500.0,0.00021917,2]
[311876047,1705483845891,-500.0,0.00021917,2]
[311876048,1705483845900,-500.0,0.00021917,2]
[311876049,1705483845909,-644.63,0.00021917,2]
[311876050,1705483845918,-1000.0,0.00021917,2]
[311876051,1705483845927,-500.0,0.00021917,2]
[311876052,1705483845937,-547.33853954,0.00021917,2]
[311876053,1705483845946,-300.0,0.00021917,2]
[311876054,1705483845955,-500.0,0.00021917,2]
[311876055,1705483845964,-500.0,0.00021917,2]
[311876056,1705483845973,-626.3,0.00021917,2]
[311876057,1705483845983,-500.0,0.00021917,2]
[311876058,1705483845992,-522.65,0.00021917,2]
[311876059,1705483846002,-500.0,0.00021917,2]
[311876060,1705483846011,-500.0,0.00021917,2]
[311876061,1705483846020,-1140.1,0.00021917,2]
[311876062,1705483846030,-500.0,0.00021917,2]
[311876063,1705483846039,-500.0,0.00021917,2]
[311876064,1705483846049,-500.0,0.00021917,2]
[311876065,1705483846058,-500.0,0.00021917,2]
[311876066,1705483846067,-500.0,0.00021917,2]
[311876067,1705483846077,-500.0,0.00021917,2]
[311876068,1705483846086,-500.0,0.00021917,2]
[311876069,1705483846097,-500.0,0.00021917,2]
[311876071,1705483846107,-757.03,0.00021917,2]
[311876072,1705483846116,-500.0,0.00021917,2]
[311876073,1705483846126,-500.0,0.00021917,2]
[311876074,1705483846136,-500.0,0.00021917,2]
[311876075,1705483846146,-500.0,0.00021917,2]
[311876076,1705483846156,-706.21,0.00021917,2]
[311876077,1705483846167,-500.0,0.00021917,2]
[311876078,1705483846177,-500.0,0.00021917,2]
[311876079,1705483846187,-724.05,0.00021917,2]
[311876080,1705483846197,-500.0,0.00021917,2]
[311876081,1705483846207,-500.0,0.00021917,2]
[311876082,1705483846217,-500.0,0.00021917,2]
[311876083,1705483846227,-1051.88,0.00021917,2]
[311876084,1705483846236,-500.0,0.00021917,2]
[311876085,1705483846246,-500.0,0.00021917,2]
[311876086,1705483846255,-500.0,0.00021917,2]
[311876087,1705483846264,-500.0,0.00021917,2]
[311876088,1705483846274,-508.91172085,0.00021917,2]
[311876089,1705483846284,-500.0,0.00021917,2]
[311876090,1705483846293,-804.84,0.00021917,2]
[311876091,1705483846302,-500.0,0.00021917,2]
[311876092,1705483846312,-942.53,0.00021917,2]
[311876093,1705483846321,-500.0,0.00021917,2]
[311876094,1705483846330,-582.03,0.00021917,2]
[311876095,1705483846340,-500.0,0.00021917,2]
[311876096,1705483846349,-500.0,0.00021917,2]
[311876097,1705483846359,-500.0,0.00021917,2]
[311876098,1705483846368,-555.54,0.00021917,2]
[311876099,1705483846378,-500.0,0.00021917,2]
[311876100,1705483846387,-500.0,0.00021917,2]
[311876101,1705483846397,-500.0,0.00021917,2]
[311876102,1705483846406,-744.0,0.00021917,2]
[311876103,1705483846416,-776.89,0.00021917,2]
[311876104,1705483846425,-659.69,0.00021917,2]
[311876105,1705483846434,-1000.0,0.00021917,7]
[311876106,1705483846444,-1570.75,0.00021917,2]
[311876107,1705483846453,-596.61,0.00021917,2]
[311876108,1705483846462,-933.69,0.00021917,2]
[311876109,1705483846472,-500.0,0.00021917,2]
[311876110,1705483846481,-649.03,0.00021917,2]
[311876111,1705483846491,-500.0,0.00021917,2]
[311876112,1705483846500,-500.0,0.00021917,2]
[311876113,1705483846510,-500.0,0.00021917,2]
[311876114,1705483846520,-877.0,0.00021917,2]
[311876115,1705483846538,-1247.53,0.00021917,2]
[311876116,1705483846549,-500.0,0.00021917,2]
[311876117,1705483846558,-500.0,0.00021917,2]
[311876118,1705483846568,-1188.27,0.00021917,2]
[311876119,1705483846577,-500.0,0.00021917,2]
[311876120,1705483846586,-500.0,0.00021917,2]
[311876121,1705483846596,-500.0,0.00021917,2]
[311876122,1705483846605,-500.0,0.00021917,2]
[311876123,1705483846615,-638.97,0.00021917,2]
[311876124,1705483846625,-596.14,0.00021917,2]
[311876125,1705483846634,-500.0,0.00021917,2]
[311876126,1705483846643,-500.0,0.00021917,2]
[311876127,1705483846653,-500.0,0.00021917,2]
[311876128,1705483846662,-500.0,0.00021917,2]
[311876129,1705483846671,-500.0,0.00021917,2]
[311876130,1705483846680,-596.27,0.00021917,2]
[311876131,1705483846689,-500.0,0.00021917,2]
[311876132,1705483846700,-500.0,0.00021917,2]
[311876133,1705483846710,-899.82,0.00021917,2]
[311876134,1705483846719,-1139.57,0.00021917,2]
[311876135,1705483846728,-500.0,0.00021917,2]
[311876136,1705483846737,-543.24,0.00021917,2]
[311876137,1705483846746,-549.34,0.00021917,2]
[311876140,1705483846756,-500.0,0.00021917,2]
[311876142,1705483846765,-500.0,0.00021917,2]
[311876145,1705483846774,-500.0,0.00021917,2]
[311876148,1705483846783,-708.16179637,0.00021917,2]
[311876151,1705483846810,-46.20820363,0.00021917,2]
[311876152,1705483846819,-500.0,0.00021917,2]
[311876153,1705483846828,-51.40177572,0.00021917,2]
[311876154,1705483846845,-297.55608784,0.00021917,2]
[311876155,1705483846873,-151.04213644,0.00021917,2]
[311876156,1705483846881,-380.01786356,0.00021917,2]
[311876157,1705483847901,-119.98213644,0.00021917,2]
[311876158,1705483847911,-500.0,0.00021917,2]
[311876159,1705483847922,-798.54,0.00021917,2]
[311876160,1705483847931,-500.0,0.00021917,2]
[311876161,1705483847942,-500.0,0.00021917,2]
[311876162,1705483847953,-754.84,0.00021917,2]
[311876163,1705483847962,-500.0,0.00021917,2]
[311876164,1705483847972,-1296.7,0.00021917,2]
[311876165,1705483847981,-516.89152654,0.00021917,2]
[311876166,1705483847990,-691.04,0.00021917,2]
[311876167,1705483847999,-836.71,0.00021917,2]
[311876168,1705483848009,-500.0,0.00021917,2]
[311876169,1705483848018,-500.0,0.00021917,2]
[311876170,1705483848027,-701.23672796,0.00021917,2]
[311876171,1705483848040,-190.39327204,0.00021917,2]
[311876172,1705483848049,-355.61272796,0.00021917,2]
[311876173,1705483848060,-144.38727204,0.00021917,2]
[311876174,1705483848071,-784.9,0.00021917,2]
[311876175,1705483848080,-516.68,0.00021917,2]
[311876176,1705483848089,-500.0,0.00021917,2]
[311876177,1705483848100,-833.8,0.00021917,2]
[311876178,1705483848109,-587.78,0.00021917,2]
[311876179,1705483848118,-500.0,0.00021917,2]
[311876180,1705483848127,-500.0,0.00021917,2]
[311876181,1705483848136,-612.46,0.00021917,2]
[311876182,1705483848145,-167.50036685,0.00021917,2]
[311876183,1705483848204,-332.49963315,0.00021917,2]
[311876184,1705483848213,-396.54940435,0.00021917,2]
[311876185,1705483848234,-103.45059565,0.00021917,2]
[311876186,1705483848243,-321.94940535,0.00021917,2]
[311876187,1705483848254,-178.05059465,0.00021917,2]
[311876188,1705483848264,-500.0,0.00021917,2]
[311876189,1705483848273,-423.43744201,0.00021917,2]
[311876190,1705483848284,-657.15255799,0.00021917,2]
[311876191,1705483848293,-1440.64,0.00021917,2]
[311876192,1705483848303,-828.33,0.00021917,2]
[311876193,1705483848312,-744.35,0.00021917,2]
[311876194,1705483848321,-775.9,0.00021917,2]
[311876195,1705483848331,-961.0,0.00021917,2]
[311876196,1705483848341,-984.31,0.00021917,2]
[311876197,1705483848352,-1263.18,0.00021917,2]
[311876198,1705483848362,-500.0,0.00021917,2]
[311876199,1705483848372,-500.0,0.00021917,2]
[311876200,1705483848381,-500.0,0.00021917,2]
[311876201,1705483848390,-598.92,0.00021917,2]
[311876202,1705483848399,-990.34,0.00021917,2]
[311876203,1705483848409,-974.95,0.00021917,2]
[311876204,1705483848418,-500.0,0.00021917,2]
[311876205,1705483848427,-500.0,0.00021917,2]
[311876206,1705483848436,-500.0,0.00021917,2]
[311876207,1705483848446,-500.0,0.00021917,2]
[311876208,1705483848455,-500.0,0.00021917,2]
[311876209,1705483848465,-500.0,0.00021917,2]
[311876210,1705483848475,-1884.85,0.00021917,2]
[311876211,1705483848484,-500.0,0.00021917,2]
[311876212,1705483848493,-1196.7,0.00021917,2]
[311876213,1705483848503,-602.75,0.00021917,2]
[311876214,1705483848514,-500.0,0.00021917,2]
[311876215,1705483848527,-992.75,0.00021917,2]
[311876216,1705483848538,-801.23,0.00021917,2]
[311876217,1705483848548,-500.0,0.00021917,2]
[311876218,1705483848558,-500.0,0.00021917,2]
[311876219,1705483848569,-590.98,0.00021917,2]
[311876220,1705483848578,-500.0,0.00021917,2]
[311876221,1705483848591,-1231.62,0.00021917,2]
[311876222,1705483848601,-500.0,0.00021917,2]
[311876223,1705483848611,-879.37,0.00021917,2]
[311876224,1705483848623,-586.32,0.00021917,2]
[311876225,1705483848633,-500.0,0.00021917,2]
[311876226,1705483848644,-500.0,0.00021917,2]
[311876227,1705483848653,-584.46,0.00021917,2]
[311876228,1705483848663,-1208.93,0.00021917,2]
[311876229,1705483848673,-500.0,0.00021917,2]
[311876230,1705483848685,-446.7442233,0.00021917,2]
[311876231,1705483848695,-1089.66,0.00021917,2]
[311876232,1705483848705,-500.0,0.00021917,2]
[311876233,1705483848714,-500.0,0.00021917,2]
[311876234,1705483848724,-752.7,0.00021917,2]
[311876235,1705483848733,-500.0,0.00021917,2]
[311876236,1705483848743,-500.0,0.00021917,2]
[311876237,1705483848752,-500.0,0.00021917,2]
[311876238,1705483848762,-500.0,0.00021917,2]
[311876239,1705483848772,-810.5,0.00021917,2]
[311876240,1705483848781,-500.0,0.00021917,2]
[311876241,1705483848791,-500.0,0.00021917,2]
[311876242,1705483848800,-500.0,0.00021917,2]
[311876243,1705483848810,-500.0,0.00021917,2]
[311876244,1705483848820,-695.73,0.00021917,2]
[311876245,1705483848829,-500.0,0.00021917,2]
[311876246,1705483848839,-500.0,0.00021917,2]
[311876247,1705483848850,-500.0,0.00021917,2]
[311876248,1705483848860,-907.1,0.00021917,2]
[311876249,1705483848870,-500.0,0.00021917,2]
[311876250,1705483848880,-500.0,0.00021917,2]
[311876251,1705483848889,-1067.53,0.00021917,2]
[311876252,1705483848900,-500.0,0.00021917,2]
[311876253,1705483848910,-1310.3,0.00021917,2]
[311876254,1705483848920,-579.96705428,0.00021917,2]
[311876255,1705483848930,-948.68,0.00021917,2]
[311876256,1705483848940,-500.0,0.00021917,2]
[311876257,1705483848950,-817.54,0.00021917,2]
[311876258,1705483848959,-500.0,0.00021917,2]
[311876259,1705483848969,-1024.58,0.00021917,2]
[311876260,1705483848979,-500.0,0.00021917,2]
[311876261,1705483848988,-500.0,0.00021917,2]
[311876262,1705483848998,-500.0,0.00021917,2]
[311876263,1705483849008,-631.07305566,0.00021917,2]
[311876264,1705483849017,-765.31,0.00021917,2]
[311876265,1705483849027,-151.96162285,0.00021917,2]
[311876266,1705483849037,-500.0,0.00021917,2]
[311876267,1705483849046,-500.0,0.00021917,2]
[311876268,1705483849056,-949.18,0.00021917,2]
[311876269,1705483849065,-500.0,0.00021917,2]
[311876270,1705483849075,-710.54,0.00021917,2]
[311876271,1705483849085,-607.53861598,0.00021917,2]
[311876272,1705483849095,-803.28,0.00021917,2]
[311876273,1705483849106,-500.0,0.00021917,2]
[311876274,1705483849116,-500.0,0.00021917,2]
[311876275,1705483849126,-518.7,0.00021917,2]
[311876276,1705483849137,-500.0,0.00021917,2]
[311876277,1705483849147,-884.25,0.00021917,2]
[311876278,1705483849158,-500.0,0.00021917,2]
[311876279,1705483849167,-500.0,0.00021917,2]
[311876280,1705483849177,-500.0,0.00021917,2]
[311876281,1705483849186,-500.0,0.00021917,2]
[311876282,1705483849195,-784.24,0.00021917,2]
[311876283,1705483849205,-896.06,0.00021917,2]
[311876284,1705483849215,-1040.74,0.00021917,2]
[311876285,1705483849224,-800.01,0.00021917,2]
[311876286,1705483849233,-528.03227258,0.00021917,2]
[311876287,1705483849243,-500.0,0.00021917,2]
[311876288,1705483849252,-500.0,0.00021917,2]
[311876289,1705483849262,-500.0,0.00021917,2]
[311876290,1705483849271,-500.0,0.00021917,2]
[311876291,1705483849281,-505.04,0.00021917,2]
[311876292,1705483849290,-832.47,0.00021917,2]
[311876293,1705483849300,-500.0,0.00021917,2]
[311876294,1705483849310,-1008.45,0.00021917,2]
[311876295,1705483849322,-1170.01,0.00021917,2]
[311876296,1705483849333,-500.0,0.00021917,2]
[311876297,1705483849343,-500.0,0.00021917,2]
[311876298,1705483849355,-1071.38,0.00021917,2]
[311876299,1705483849364,-1072.56,0.00021917,2]
[311876300,1705483849374,-777.04,0.00021917,2]
[311876301,1705483849383,-969.85,0.00021917,2]
[311876302,1705483849393,-500.0,0.00021917,2]
[311876303,1705483849402,-500.0,0.00021917,2]
[311876304,1705483849412,-500.0,0.00021917,2]
[311876305,1705483849423,-553.71,0.00021917,2]
[311876306,1705483849432,-1289.89,0.00021917,2]
[311876307,1705483849442,-502.95,0.00021917,2]
[311876308,1705483849453,-500.0,0.00021917,2]
[311876309,1705483849463,-532.51,0.00021917,2]
[311876310,1705483849474,-1360.48,0.00021917,2]
[311876311,1705483849483,-970.39,0.00021917,2]
[311876312,1705483849493,-500.0,0.00021917,2]
[311876313,1705483849502,-940.79,0.00021917,2]
[311876314,1705483849512,-591.5,0.00021917,2]
[311876315,1705483849523,-1129.39,0.00021917,2]
[311876316,1705483849534,-500.0,0.00021917,2]
[311876317,1705483849544,-500.0,0.00021917,2]
[311876318,1705483849553,-500.0,0.00021917,2]
[311876319,1705483849562,-817.26,0.00021917,2]
[311876320,1705483849573,-509.11372979,0.00021917,2]
[311876321,1705483849583,-500.0,0.00021917,2]
[311876322,1705483849593,-500.0,0.00021917,2]
[311876323,1705483849604,-831.47,0.00021917,2]
[311876324,1705483849615,-500.0,0.00021917,2]
[311876325,1705483849625,-1055.53,0.00021917,2]
[311876326,1705483849635,-500.0,0.00021917,2]
[311876327,1705483849645,-975.08,0.00021917,2]
[311876328,1705483849654,-1059.36,0.00021917,2]
[311876329,1705483849664,-500.0,0.00021917,2]
[311876330,1705483849675,-591.02,0.00021917,2]
[311876331,1705483849684,-679.2,0.00021917,2]
[311876332,1705483849693,-500.0,0.00021917,2]
[311876333,1705483849703,-500.0,0.00021917,2]
[311876334,1705483849713,-500.0,0.00021917,2]
[311876335,1705483849723,-500.0,0.00021917,2]
[311876336,1705483849733,-500.0,0.00021917,2]
[311876337,1705483849742,-692.24,0.00021917,2]
[311876338,1705483849751,-2197.19,0.00021917,2]
[311876339,1705483849761,-903.65,0.00021917,7]
[311876340,1705483849771,-500.0,0.00021917,2]
[311876341,1705483849781,-500.0,0.00021917,2]
[311876342,1705483849791,-678.76,0.00021917,2]
[311876343,1705483849800,-500.0,0.00021917,2]
[311876344,1705483849810,-500.0,0.00021917,2]
[311876345,1705483849821,-500.0,0.00021917,2]
[311876346,1705483849830,-682.3,0.00021917,2]
[311876347,1705483849840,-500.0,0.00021917,2]
[311876348,1705483849850,-806.05,0.00021917,2]
[311876349,1705483849860,-1078.47,0.00021917,2]
[311876350,1705483849870,-500.0,0.00021917,2]
[311876351,1705483849879,-500.0,0.00021917,2]
[311876352,1705483849890,-1627.6,0.00021917,2]